[Event "Early-Titled-Tuesday-Blitz-August-29-2023"]
[Site "Chess.com"]
[Date "2023.08.29"]
[Round "11"]
[White "cottage_cheese"]
[Black "Gyulamiryan-koryun"]
[Result "0-1"]
[WhiteElo "2272"]
[BlackElo "2093"]
[TimeControl "180+1"]
[EndTime "10:04:35 PDT"]
[Termination "Gyulamiryan-koryun won by checkmate"]

1. e4 {[%clk 0:02:53.7]} 1... c5 {[%clk 0:02:59.2]} 2. Nf3 {[%clk 0:02:53.7]}
2... d6 {[%clk 0:02:57.9]} 3. d4 {[%clk 0:02:53.3]} 3... cxd4 {[%clk 0:02:57.3]}
4. Nxd4 {[%clk 0:02:54.2]} 4... Nf6 {[%clk 0:02:57.5]} 5. Nc3 {[%clk 0:02:55.1]}
5... a6 {[%clk 0:02:57.5]} 6. h3 {[%clk 0:02:55.6]} 6... e6 {[%clk 0:02:55.2]}
7. g4 {[%clk 0:02:55.3]} 7... d5 {[%clk 0:02:54.6]} 8. exd5 {[%clk 0:02:05.8]}
8... Nxd5 {[%clk 0:02:52.5]} 9. Bg2 {[%clk 0:01:59.4]} 9... Nxc3 {[%clk
0:02:33.2]} 10. bxc3 {[%clk 0:01:58.5]} 10... Be7 {[%clk 0:02:32.6]} 11. O-O
{[%clk 0:01:57.6]} 11... O-O {[%clk 0:02:30.8]} 12. Rb1 {[%clk 0:01:57.1]} 12...
Qc7 {[%clk 0:02:25.3]} 13. Qf3 {[%clk 0:01:47]} 13... Nd7 {[%clk 0:02:21.1]} 14.
Bf4 {[%clk 0:01:37.3]} 14... Qa5 {[%clk 0:01:48]} 15. Rfe1 {[%clk 0:01:20.6]}
15... Bf6 {[%clk 0:01:44.5]} 16. g5 {[%clk 0:01:13.4]} 16... Bxg5 {[%clk
0:01:39.3]} 17. Bd6 {[%clk 0:01:05.9]} 17... Re8 {[%clk 0:01:31.4]} 18. Nb3
{[%clk 0:00:43.3]} 18... Qxa2 {[%clk 0:01:25.6]} 19. Qh5 {[%clk 0:00:19.7]}
19... Bf6 {[%clk 0:01:18]} 20. Be4 {[%clk 0:00:14.2]} 20... g6 {[%clk
0:01:16.2]} 21. Qf3 {[%clk 0:00:10.4]} 21... Bg7 {[%clk 0:01:12.3]} 22. Ra1
{[%clk 0:00:09.6]} 22... Qb2 {[%clk 0:01:08.2]} 23. Bxb7 {[%clk 0:00:07.7]}
23... Bxb7 {[%clk 0:00:58.3]} 24. Qxb7 {[%clk 0:00:08.6]} 24... Nf6 {[%clk
0:00:56.5]} 25. Be5 {[%clk 0:00:07]} 25... Nd5 {[%clk 0:00:51.5]} 26. Bxg7
{[%clk 0:00:06.1]} 26... Kxg7 {[%clk 0:00:51.9]} 27. Qc6 {[%clk 0:00:04.5]}
27... Qxc3 {[%clk 0:00:47.7]} 28. Qxc3+ {[%clk 0:00:03.2]} 28... Nxc3 {[%clk
0:00:48.6]} 29. Nc5 {[%clk 0:00:02.9]} 29... a5 {[%clk 0:00:46.2]} 30. Re3
{[%clk 0:00:01.7]} 30... Nd5 {[%clk 0:00:44.6]} 31. Rea3 {[%clk 0:00:01.5]}
31... Nb4 {[%clk 0:00:28.4]} 32. Rxa5 {[%clk 0:00:02.3]} 32... Rxa5 {[%clk
0:00:27.7]} 33. Rxa5 {[%clk 0:00:03.2]} 33... Nxc2 {[%clk 0:00:27.9]} 34. Ra7
{[%clk 0:00:04]} 34... Nd4 {[%clk 0:00:25.1]} 35. Kg2 {[%clk 0:00:03.6]} 35...
h5 {[%clk 0:00:24.3]} 36. Kg3 {[%clk 0:00:03.3]} 36... Nf5+ {[%clk 0:00:24.3]}
37. Kf4 {[%clk 0:00:03.2]} 37... Kf6 {[%clk 0:00:23.6]} 38. f3 {[%clk 0:00:03]}
38... g5+ {[%clk 0:00:23.3]} 39. Ke4 {[%clk 0:00:02.1]} 39... Nd6+ {[%clk
0:00:19.7]} 40. Ke3 {[%clk 0:00:01.8]} 40... Nc4+ {[%clk 0:00:18.8]} 41. Kf2
{[%clk 0:00:02.3]} 41... Ne5 {[%clk 0:00:17.9]} 42. Ne4+ {[%clk 0:00:03.2]}
42... Kg6 {[%clk 0:00:16.6]} 43. Ra5 {[%clk 0:00:04.1]} 43... f6 {[%clk
0:00:14.1]} 44. Ra6 {[%clk 0:00:04]} 44... Re7 {[%clk 0:00:09.7]} 45. Nc5 {[%clk
0:00:04]} 45... Kf7 {[%clk 0:00:09]} 46. Ne4 {[%clk 0:00:04.4]} 46... h4 {[%clk
0:00:09.2]} 47. Nxg5+ {[%clk 0:00:04.5]} 47... fxg5 {[%clk 0:00:08.9]} 48. Ra5
{[%clk 0:00:05.2]} 48... Kf6 {[%clk 0:00:09.4]} 49. Ra4 {[%clk 0:00:05.2]} 49...
Rd7 {[%clk 0:00:09.7]} 50. Re4 {[%clk 0:00:05.8]} 50... Kf5 {[%clk 0:00:10.1]}
51. Re2 {[%clk 0:00:05.7]} 51... Rd3 {[%clk 0:00:10.5]} 52. Kg2 {[%clk
0:00:05.5]} 52... Rxf3 {[%clk 0:00:10.9]} 53. Rxe5+ {[%clk 0:00:05.9]} 53...
Kxe5 {[%clk 0:00:11]} 54. Kxf3 {[%clk 0:00:06.8]} 54... Kf5 {[%clk 0:00:11.8]}
55. Ke3 {[%clk 0:00:07.1]} 55... e5 {[%clk 0:00:12.7]} 56. Kf3 {[%clk 0:00:08]}
56... e4+ {[%clk 0:00:13.4]} 57. Ke3 {[%clk 0:00:08.9]} 57... Ke5 {[%clk
0:00:14.2]} 58. Kf2 {[%clk 0:00:09.6]} 58... Kf4 {[%clk 0:00:15.1]} 59. Ke2
{[%clk 0:00:10.5]} 59... e3 {[%clk 0:00:16]} 60. Ke1 {[%clk 0:00:10.4]} 60...
Kg3 {[%clk 0:00:16.9]} 61. Ke2 {[%clk 0:00:10.6]} 61... Kxh3 {[%clk 0:00:17.8]}
62. Kxe3 {[%clk 0:00:11.5]} 62... Kg2 {[%clk 0:00:18.3]} 63. Ke4 {[%clk
0:00:11.5]} 63... h3 {[%clk 0:00:19.2]} 64. Kf5 {[%clk 0:00:12.4]} 64... h2
{[%clk 0:00:20.1]} 65. Kg4 {[%clk 0:00:13.3]} 65... h1=Q {[%clk 0:00:21]} 66.
Kxg5 {[%clk 0:00:13.6]} 66... Qf1 {[%clk 0:00:21.9]} 67. Kg4 {[%clk 0:00:14.4]}
67... Kf2 {[%clk 0:00:21.4]} 68. Kh4 {[%clk 0:00:15.3]} 68... Ke3 {[%clk
0:00:22.3]} 69. Kg4 {[%clk 0:00:16.1]} 69... Ke4 {[%clk 0:00:22.5]} 70. Kg5
{[%clk 0:00:16.4]} 70... Qf4+ {[%clk 0:00:22.7]} 71. Kg6 {[%clk 0:00:17.3]}
71... Ke5 {[%clk 0:00:23]} 72. Kg7 {[%clk 0:00:18.2]} 72... Qf6+ {[%clk
0:00:23]} 73. Kg8 {[%clk 0:00:19.1]} 73... Qe7 {[%clk 0:00:22.8]} 74. Kh8 {[%clk
0:00:19.3]} 74... Kf6 {[%clk 0:00:23.6]} 75. Kg8 {[%clk 0:00:19.5]} 75... Qg7#
{[%clk 0:00:24.5]} 0-1

[Event "Early-Titled-Tuesday-Blitz-August-29-2023"]
[Site "Chess.com"]
[Date "2023.08.29"]
[Round "11"]
[White "Shuvalov"]
[Black "CFalcons8"]
[Result "1-0"]
[WhiteElo "2476"]
[BlackElo "2247"]
[TimeControl "180+1"]
[EndTime "10:04:36 PDT"]
[Termination "Shuvalov won by resignation"]

1. d4 {[%clk 0:03:00.9]} 1... Nf6 {[%clk 0:01:55.3]} 2. c4 {[%clk 0:03:00.1]}
2... e6 {[%clk 0:01:55.4]} 3. Nc3 {[%clk 0:03:00]} 3... Bb4 {[%clk 0:01:54.4]}
4. e3 {[%clk 0:03:00.2]} 4... d5 {[%clk 0:01:53.8]} 5. a3 {[%clk 0:02:58.4]}
5... Bxc3+ {[%clk 0:01:52.1]} 6. bxc3 {[%clk 0:02:59.3]} 6... dxc4 {[%clk
0:01:52.2]} 7. Bxc4 {[%clk 0:02:59]} 7... Nbd7 {[%clk 0:01:47.4]} 8. Nf3 {[%clk
0:02:57.6]} 8... a6 {[%clk 0:01:47]} 9. a4 {[%clk 0:02:56.5]} 9... O-O {[%clk
0:01:42.9]} 10. O-O {[%clk 0:02:56]} 10... Re8 {[%clk 0:01:42]} 11. Qb3 {[%clk
0:02:50.6]} 11... Nb6 {[%clk 0:01:40.3]} 12. Be2 {[%clk 0:02:48.5]} 12... Bd7
{[%clk 0:01:35.4]} 13. a5 {[%clk 0:02:46.7]} 13... Nc8 {[%clk 0:01:34.2]} 14.
Qxb7 {[%clk 0:02:43.4]} 14... Nd6 {[%clk 0:01:34.3]} 15. Qb1 {[%clk 0:02:41.7]}
15... Rb8 {[%clk 0:01:28.9]} 16. Qc2 {[%clk 0:02:41.8]} 16... Bb5 {[%clk
0:00:58.6]} 17. c4 {[%clk 0:02:39]} 17... Bc6 {[%clk 0:00:58.9]} 18. Ne5 {[%clk
0:02:37.4]} 18... Be4 {[%clk 0:00:55.6]} 19. Bd3 {[%clk 0:02:34.7]} 19... Bxd3
{[%clk 0:00:49.6]} 20. Qxd3 {[%clk 0:02:35.6]} 20... Qc8 {[%clk 0:00:42.4]} 21.
Ba3 {[%clk 0:02:27.3]} 21... Qb7 {[%clk 0:00:35.8]} 22. f3 {[%clk 0:02:20.3]}
22... Qb3 {[%clk 0:00:35.3]} 23. Rfd1 {[%clk 0:02:10.2]} 23... Rb7 {[%clk
0:00:20.8]} 24. c5 {[%clk 0:01:38.4]} 24... Qxd3 {[%clk 0:00:17]} 25. Rxd3
{[%clk 0:01:39.3]} 25... Nb5 {[%clk 0:00:17.1]} 26. Bc1 {[%clk 0:01:36.3]} 26...
Nd5 {[%clk 0:00:14.1]} 27. Bd2 {[%clk 0:01:35.7]} 27... f6 {[%clk 0:00:10.5]}
28. Nc6 {[%clk 0:01:35.7]} 28... Ne7 {[%clk 0:00:06.2]} 29. Nb4 {[%clk
0:01:31.3]} 29... Ra8 {[%clk 0:00:05.7]} 30. e4 {[%clk 0:01:29.6]} 30... c6
{[%clk 0:00:04.5]} 31. Kf2 {[%clk 0:01:22.1]} 31... Rd7 {[%clk 0:00:04.1]} 32.
Be3 {[%clk 0:01:19.3]} 32... Rb7 {[%clk 0:00:03.9]} 33. Ra4 {[%clk 0:01:17.9]}
33... Nc7 {[%clk 0:00:04.2]} 34. Bf4 {[%clk 0:01:14.6]} 34... Rab8 {[%clk
0:00:04.2]} 35. Bxc7 {[%clk 0:01:11.8]} 35... Rxb4 {[%clk 0:00:05]} 36. Rxb4
{[%clk 0:01:10.8]} 36... Rxb4 {[%clk 0:00:05.9]} 37. Bd6 {[%clk 0:01:09.9]}
37... Nc8 {[%clk 0:00:05.8]} 38. Ke3 {[%clk 0:01:08.8]} 38... Na7 {[%clk
0:00:06.1]} 39. d5 {[%clk 0:01:07.4]} 39... exd5 {[%clk 0:00:07]} 40. exd5
{[%clk 0:01:07.5]} 40... cxd5 {[%clk 0:00:07.8]} 41. c6 {[%clk 0:00:59.6]} 41...
Rc4 {[%clk 0:00:08.6]} 42. c7 {[%clk 0:00:59.8]} 42... Nb5 {[%clk 0:00:08.6]}
43. Rxd5 {[%clk 0:00:58.2]} 43... Nxc7 {[%clk 0:00:06]} 44. Bxc7 {[%clk
0:00:57.4]} 44... Rxc7 {[%clk 0:00:06.9]} 45. Rd6 {[%clk 0:00:57.7]} 45... Rc3+
{[%clk 0:00:06.7]} 46. Kf4 {[%clk 0:00:56.5]} 46... Rc4+ {[%clk 0:00:07.1]} 47.
Kg3 {[%clk 0:00:55.7]} 47... Ra4 {[%clk 0:00:05.7]} 48. Rxa6 {[%clk 0:00:55.7]}
48... Kf7 {[%clk 0:00:05.9]} 49. Ra7+ {[%clk 0:00:55.6]} 49... Kg6 {[%clk
0:00:06.7]} 50. a6 {[%clk 0:00:55.3]} 50... h5 {[%clk 0:00:07.1]} 51. h4 {[%clk
0:00:49.7]} 51... Kh6 {[%clk 0:00:07.4]} 52. Ra8 {[%clk 0:00:49.3]} 52... g5
{[%clk 0:00:07.6]} 53. hxg5+ {[%clk 0:00:48.5]} 53... fxg5 {[%clk 0:00:08.5]}
54. a7 {[%clk 0:00:47.9]} 54... Kg7 {[%clk 0:00:09.1]} 55. Kh3 {[%clk
0:00:46.2]} 55... Ra5 {[%clk 0:00:09.2]} 56. g3 {[%clk 0:00:46.2]} 56... Ra4
{[%clk 0:00:10]} 57. f4 {[%clk 0:00:45]} 57... gxf4 {[%clk 0:00:09.4]} 58. gxf4
{[%clk 0:00:45.9]} 58... Ra3+ {[%clk 0:00:10.3]} 59. Kh2 {[%clk 0:00:45]} 59...
h4 {[%clk 0:00:10.3]} 60. f5 {[%clk 0:00:45.2]} 60... Ra6 {[%clk 0:00:07.8]} 61.
f6+ {[%clk 0:00:44.7]} 61... Kf7 {[%clk 0:00:06.1]} 62. Rh8 {[%clk 0:00:44.2]}
62... Ra2+ {[%clk 0:00:04.6]} 63. Kh3 {[%clk 0:00:44]} 63... Ra3+ {[%clk
0:00:05.5]} 64. Kxh4 {[%clk 0:00:44.4]} 64... Ra4+ {[%clk 0:00:06.4]} 65. Kg3
{[%clk 0:00:44.6]} 65... Ra3+ {[%clk 0:00:07.1]} 66. Kf2 {[%clk 0:00:44.8]}
66... Ra2+ {[%clk 0:00:07.6]} 67. Ke3 {[%clk 0:00:45.1]} 67... Ra3+ {[%clk
0:00:08.5]} 68. Kd2 {[%clk 0:00:45.5]} 68... Ra2+ {[%clk 0:00:09.1]} 69. Kc3
{[%clk 0:00:45.9]} 69... Ra3+ {[%clk 0:00:08.9]} 70. Kb2 {[%clk 0:00:46.1]}
70... Rxa7 {[%clk 0:00:08.2]} 71. Rh7+ {[%clk 0:00:45.9]} 1-0

[Event "Early-Titled-Tuesday-Blitz-August-29-2023"]
[Site "Chess.com"]
[Date "2023.08.29"]
[Round "11"]
[White "fabianvivasz"]
[Black "Apocalyps999"]
[Result "1/2-1/2"]
[WhiteElo "2423"]
[BlackElo "2327"]
[TimeControl "180+1"]
[EndTime "10:04:37 PDT"]
[Termination "Game drawn - insufficient material"]

1. e4 {[%clk 0:03:00.1]} 1... e5 {[%clk 0:02:58.8]} 2. Nf3 {[%clk 0:02:59.5]}
2... Nc6 {[%clk 0:02:58.5]} 3. Bc4 {[%clk 0:02:59.9]} 3... Nf6 {[%clk
0:02:57.7]} 4. d3 {[%clk 0:02:59.6]} 4... Bc5 {[%clk 0:02:53.5]} 5. c3 {[%clk
0:02:59.7]} 5... O-O {[%clk 0:02:53.1]} 6. O-O {[%clk 0:03:00]} 6... d5 {[%clk
0:02:52.5]} 7. exd5 {[%clk 0:03:00.9]} 7... Nxd5 {[%clk 0:02:52.8]} 8. Re1
{[%clk 0:03:01.4]} 8... Nb6 {[%clk 0:02:52.7]} 9. Bb3 {[%clk 0:02:37.3]} 9...
Bg4 {[%clk 0:02:50.5]} 10. h3 {[%clk 0:02:37.3]} 10... Bh5 {[%clk 0:02:50.5]}
11. Nbd2 {[%clk 0:02:36.3]} 11... Qxd3 {[%clk 0:02:46.6]} 12. Nxe5 {[%clk
0:02:34.9]} 12... Qf5 {[%clk 0:01:36.5]} 13. Nef3 {[%clk 0:02:30]} 13... Rfe8
{[%clk 0:01:35.1]} 14. g4 {[%clk 0:02:12]} 14... Bxg4 {[%clk 0:01:11.9]} 15.
hxg4 {[%clk 0:02:11.8]} 15... Qxg4+ {[%clk 0:01:11.3]} 16. Kh1 {[%clk
0:02:08.3]} 16... Bxf2 {[%clk 0:01:07.4]} 17. Re2 {[%clk 0:01:46.3]} 17... Bg3
{[%clk 0:00:53.2]} 18. Qf1 {[%clk 0:00:45.5]} 18... Rxe2 {[%clk 0:00:27.2]} 19.
Qxe2 {[%clk 0:00:45.3]} 19... Ne5 {[%clk 0:00:19.6]} 20. Qg2 {[%clk 0:00:35.8]}
20... Qh5+ {[%clk 0:00:18.9]} 21. Kg1 {[%clk 0:00:36]} 21... Bf4 {[%clk
0:00:17.6]} 22. Nxe5 {[%clk 0:00:32.4]} 22... Be3+ {[%clk 0:00:16.7]} 23. Kf1
{[%clk 0:00:30.7]} 23... Qxe5 {[%clk 0:00:15.6]} 24. Nf3 {[%clk 0:00:30.2]}
24... Qb5+ {[%clk 0:00:11.1]} 25. Qe2 {[%clk 0:00:26.9]} 25... Qxe2+ {[%clk
0:00:07.6]} 26. Kxe2 {[%clk 0:00:27.8]} 26... Bxc1 {[%clk 0:00:07.9]} 27. Rxc1
{[%clk 0:00:28]} 27... c5 {[%clk 0:00:08.6]} 28. Kf2 {[%clk 0:00:24.4]} 28... h6
{[%clk 0:00:07.6]} 29. Re1 {[%clk 0:00:23.1]} 29... c4 {[%clk 0:00:08]} 30. Bc2
{[%clk 0:00:23.2]} 30... Kf8 {[%clk 0:00:08.6]} 31. Nd4 {[%clk 0:00:19.1]} 31...
a6 {[%clk 0:00:07.5]} 32. Be4 {[%clk 0:00:18.6]} 32... Rb8 {[%clk 0:00:07.2]}
33. Bf3 {[%clk 0:00:17]} 33... Nd7 {[%clk 0:00:07.3]} 34. Bd5 {[%clk 0:00:13.9]}
34... Nc5 {[%clk 0:00:07.7]} 35. Bxc4 {[%clk 0:00:13.6]} 35... b5 {[%clk
0:00:06.5]} 36. Bf1 {[%clk 0:00:13.5]} 36... Na4 {[%clk 0:00:06.3]} 37. Re2
{[%clk 0:00:12.9]} 37... Rc8 {[%clk 0:00:03.4]} 38. Rc2 {[%clk 0:00:13.1]} 38...
Nb6 {[%clk 0:00:02.6]} 39. b3 {[%clk 0:00:13]} 39... Nd5 {[%clk 0:00:03.5]} 40.
c4 {[%clk 0:00:13.3]} 40... Nf4 {[%clk 0:00:03.8]} 41. cxb5 {[%clk 0:00:12.9]}
41... Rxc2+ {[%clk 0:00:03.9]} 42. Nxc2 {[%clk 0:00:13.5]} 42... axb5 {[%clk
0:00:04.2]} 43. Bxb5 {[%clk 0:00:14.1]} 43... Ne6 {[%clk 0:00:04.3]} 44. a4
{[%clk 0:00:14.5]} 44... Nc7 {[%clk 0:00:05.2]} 45. Bc4 {[%clk 0:00:14.5]} 45...
Ke7 {[%clk 0:00:06.1]} 46. Ke3 {[%clk 0:00:14.5]} 46... Kd6 {[%clk 0:00:07]} 47.
Kd4 {[%clk 0:00:15]} 47... f6 {[%clk 0:00:05.5]} 48. Ne3 {[%clk 0:00:15.5]}
48... h5 {[%clk 0:00:06.4]} 49. Nf5+ {[%clk 0:00:15.8]} 49... Kd7 {[%clk
0:00:06.3]} 50. Nxg7 {[%clk 0:00:16.4]} 50... h4 {[%clk 0:00:07.2]} 51. Nh5
{[%clk 0:00:15.8]} 51... h3 {[%clk 0:00:08.1]} 52. Nxf6+ {[%clk 0:00:16.3]}
52... Kd8 {[%clk 0:00:07.9]} 53. Ng4 {[%clk 0:00:17.2]} 53... Ne8 {[%clk
0:00:06.9]} 54. Nh2 {[%clk 0:00:17.7]} 54... Nf6 {[%clk 0:00:06.9]} 55. a5
{[%clk 0:00:17.7]} 55... Kc7 {[%clk 0:00:06.7]} 56. Be6 {[%clk 0:00:14.5]} 56...
Kb7 {[%clk 0:00:07.6]} 57. Bxh3 {[%clk 0:00:14.5]} 57... Ka6 {[%clk 0:00:07.7]}
58. b4 {[%clk 0:00:15.1]} 58... Kb5 {[%clk 0:00:07.8]} 59. Kc3 {[%clk 0:00:15]}
59... Nd5+ {[%clk 0:00:07.9]} 60. Kb3 {[%clk 0:00:09.6]} 60... Nxb4 {[%clk
0:00:08.8]} 61. Nf3 {[%clk 0:00:04.4]} 61... Kxa5 {[%clk 0:00:09.1]} 62. Nd4
{[%clk 0:00:04.9]} 62... Na6 {[%clk 0:00:08.3]} 63. Kc4 {[%clk 0:00:04.5]} 63...
Kb6 {[%clk 0:00:09.2]} 64. Kd5 {[%clk 0:00:04.5]} 64... Nc7+ {[%clk 0:00:09.6]}
65. Kd6 {[%clk 0:00:04.8]} 65... Nb5+ {[%clk 0:00:09.8]} 66. Nxb5 {[%clk
0:00:04.2]} 66... Kxb5 {[%clk 0:00:10.7]} 1/2-1/2

[Event "Early-Titled-Tuesday-Blitz-August-29-2023"]
[Site "Chess.com"]
[Date "2023.08.29"]
[Round "11"]
[White "AttilaTurzo"]
[Black "cool64chess"]
[Result "1-0"]
[WhiteElo "2531"]
[BlackElo "2524"]
[TimeControl "180+1"]
[EndTime "10:04:44 PDT"]
[Termination "AttilaTurzo won on time"]

1. d4 {[%clk 0:03:00.9]} 1... d5 {[%clk 0:02:53]} 2. Nf3 {[%clk 0:03:01.2]} 2...
Nf6 {[%clk 0:02:51.3]} 3. Bf4 {[%clk 0:03:01.7]} 3... e6 {[%clk 0:02:51.3]} 4.
e3 {[%clk 0:03:02.2]} 4... Bd6 {[%clk 0:02:48.9]} 5. Nbd2 {[%clk 0:03:02.8]}
5... O-O {[%clk 0:02:49]} 6. Bd3 {[%clk 0:03:02.7]} 6... c5 {[%clk 0:02:49.1]}
7. c3 {[%clk 0:03:02.6]} 7... Nc6 {[%clk 0:02:49.2]} 8. O-O {[%clk 0:02:59.6]}
8... Qe7 {[%clk 0:02:47.7]} 9. Ne5 {[%clk 0:02:56.9]} 9... Nd7 {[%clk
0:02:46.8]} 10. Ndf3 {[%clk 0:02:42.7]} 10... f6 {[%clk 0:02:45.5]} 11. Nxc6
{[%clk 0:02:28.7]} 11... bxc6 {[%clk 0:02:44.3]} 12. Bxd6 {[%clk 0:02:26.9]}
12... Qxd6 {[%clk 0:02:45.2]} 13. e4 {[%clk 0:02:27.5]} 13... Rb8 {[%clk
0:02:38.8]} 14. Qe2 {[%clk 0:02:26.8]} 14... c4 {[%clk 0:02:32.6]} 15. Bb1
{[%clk 0:02:23.3]} 15... e5 {[%clk 0:02:15.9]} 16. Rd1 {[%clk 0:01:58.7]} 16...
exd4 {[%clk 0:02:12.7]} 17. Nxd4 {[%clk 0:01:50.8]} 17... Ne5 {[%clk 0:02:09.3]}
18. h3 {[%clk 0:01:44.3]} 18... c5 {[%clk 0:01:54.5]} 19. Nc2 {[%clk 0:01:27.7]}
19... Nd3 {[%clk 0:01:45.3]} 20. exd5 {[%clk 0:01:12.3]} 20... Rxb2 {[%clk
0:01:39.8]} 21. Qf3 {[%clk 0:00:58.2]} 21... Bb7 {[%clk 0:01:35.3]} 22. Ne3
{[%clk 0:00:57.5]} 22... Rxf2 {[%clk 0:01:27.7]} 23. Nxc4 {[%clk 0:00:57.8]}
23... Qxd5 {[%clk 0:01:15.2]} 24. Qxd5+ {[%clk 0:00:52.8]} 24... Bxd5 {[%clk
0:01:13.1]} 25. Bxd3 {[%clk 0:00:52.8]} 25... Rxg2+ {[%clk 0:01:10.7]} 26. Kf1
{[%clk 0:00:53.3]} 26... Rh2 {[%clk 0:01:06.6]} 27. Ne3 {[%clk 0:00:40.9]} 27...
Bf3 {[%clk 0:01:03.6]} 28. Rdc1 {[%clk 0:00:33.2]} 28... f5 {[%clk 0:00:49.7]}
29. Bc4+ {[%clk 0:00:30.9]} 29... Kh8 {[%clk 0:00:48.4]} 30. Bd5 {[%clk
0:00:31.5]} 30... Rxh3 {[%clk 0:00:23.7]} 31. Bxf3 {[%clk 0:00:28.4]} 31...
Rxf3+ {[%clk 0:00:24.6]} 32. Ke2 {[%clk 0:00:28.8]} 32... Rh3 {[%clk 0:00:24.7]}
33. Rf1 {[%clk 0:00:28.1]} 33... g6 {[%clk 0:00:22.8]} 34. Rf3 {[%clk
0:00:27.5]} 34... Rh2+ {[%clk 0:00:22.2]} 35. Rf2 {[%clk 0:00:27.8]} 35... Rh4
{[%clk 0:00:22.2]} 36. Raf1 {[%clk 0:00:27.3]} 36... Re4 {[%clk 0:00:21.4]} 37.
Rf4 {[%clk 0:00:25.5]} 37... Re5 {[%clk 0:00:20.3]} 38. Kd2 {[%clk 0:00:25.1]}
38... Rfe8 {[%clk 0:00:20.8]} 39. R1f3 {[%clk 0:00:23.4]} 39... Kg7 {[%clk
0:00:20.2]} 40. Ra4 {[%clk 0:00:22.6]} 40... R8e7 {[%clk 0:00:19.8]} 41. Ra6
{[%clk 0:00:20.7]} 41... h5 {[%clk 0:00:19]} 42. c4 {[%clk 0:00:21.2]} 42...
R5e6 {[%clk 0:00:18.8]} 43. Rxe6 {[%clk 0:00:20.6]} 43... Rxe6 {[%clk
0:00:19.7]} 44. Nd5 {[%clk 0:00:20.5]} 44... h4 {[%clk 0:00:19]} 45. Ra3 {[%clk
0:00:20.6]} 45... h3 {[%clk 0:00:18.2]} 46. Rxh3 {[%clk 0:00:20.3]} 46... g5
{[%clk 0:00:17.5]} 47. Ra3 {[%clk 0:00:18.5]} 47... a6 {[%clk 0:00:17.1]} 48.
Re3 {[%clk 0:00:16.6]} 48... Rd6 {[%clk 0:00:16.5]} 49. Re7+ {[%clk 0:00:14.7]}
49... Kg6 {[%clk 0:00:16.7]} 50. Ke3 {[%clk 0:00:15]} 50... f4+ {[%clk
0:00:16.5]} 51. Ke4 {[%clk 0:00:15.1]} 51... Rc6 {[%clk 0:00:15.2]} 52. Re8
{[%clk 0:00:11.9]} 52... Kh5 {[%clk 0:00:13.5]} 53. Kf3 {[%clk 0:00:08.9]} 53...
Rh6 {[%clk 0:00:09.8]} 54. Re1 {[%clk 0:00:05.8]} 54... Rd6 {[%clk 0:00:06.8]}
55. Rh1+ {[%clk 0:00:04.8]} 55... Kg6 {[%clk 0:00:07]} 56. Rh8 {[%clk
0:00:05.5]} 56... Re6 {[%clk 0:00:06.4]} 57. Kg4 {[%clk 0:00:03.9]} 57... Re1
{[%clk 0:00:04.9]} 58. Rg8+ {[%clk 0:00:03.4]} 58... Kh6 {[%clk 0:00:05.1]} 59.
Nf6 {[%clk 0:00:03.5]} 59... Rg1+ {[%clk 0:00:04.2]} 60. Kf5 {[%clk 0:00:04]}
1-0